fUST/lending_fUST_20240227
["ID","MTS","AMOUNT","RATE_DAILY","PERIOD"]
[315440952,1709038336370,-2752.6870916,0.00039768,120]
[315440953,1709038336399,-2193.16110529,0.000399,120]
[315440957,1709038548360,151.19655552,0.00027756,120]
[315440958,1709038618942,192.920344,0.00030959,120]
[315440962,1709038814007,1456.42424182,0.00039768,120]
[315440964,1709038826140,952.14595026,0.00039768,120]
[315440965,1709038858257,1689.08326485,0.00032775,120]
[315440966,1709038872414,1199.108275,0.00021,30]
[315440968,1709038950929,182.06588,0.00017884,2]
[315441004,1709039432588,-592.46019968,0.00018402,2]
[315441006,1709039432599,-280.14317129,0.00018402,2]
[315441008,1709039432612,-155.19399249,0.00018402,2]
[315441010,1709039432624,-169.11988706,0.00018403,2]
[315441013,1709039432635,-555.34716751,0.00018403,2]
[315441015,1709039432649,-9685.16866833,0.00018403,2]
[315441017,1709039432661,-1879.04617708,0.00018403,2]
[315441020,1709039432672,-2717.87041396,0.00018404,2]
[315441022,1709039432683,-1591.62159516,0.00018405,2]
[315441024,1709039432694,-209.16797121,0.000189,2]
[315441026,1709039432705,-719.93,0.00019168,3]
[315441029,1709039432728,-7154.8672486,0.00019175,3]
[315441031,1709039432739,-155.91875533,0.00019177,2]
[315441033,1709039432756,-500.0,0.00019177,2]
[315441035,1709039432768,-500.0,0.00019178,2]
[315441037,1709039432781,-500.0,0.00019178,2]
[315441039,1709039432792,-500.0,0.00019178,2]
[315441042,1709039432803,-500.0,0.00019178,2]
[315441044,1709039432815,-500.0,0.00019178,2]
[315441046,1709039432827,-500.0,0.00019178,2]
[315441048,1709039432838,-500.97693957,0.00019178,2]
[315441050,1709039432850,-500.82063476,0.00019178,2]
[315441053,1709039432866,-500.0,0.00019178,2]
[315441055,1709039432877,-500.0,0.00019178,2]
[315441057,1709039432888,-500.0,0.00019178,2]
[315441059,1709039432900,-500.0,0.00019178,2]
[315441062,1709039432912,-500.0,0.00019178,2]
[315441064,1709039432923,-501.65770956,0.00019178,2]
[315441066,1709039432934,-500.65277545,0.00019178,2]
[315441068,1709039432945,-543.68572627,0.00019178,2]
[315441070,1709039432956,-618.23,0.00019178,2]
[315441072,1709039432967,-500.0,0.00019178,2]
[315441074,1709039432978,-501.12706915,0.00019178,2]
[315441077,1709039432989,-500.0,0.00019178,2]
[315441079,1709039433000,-625.25473972,0.00019178,2]
[315441081,1709039433011,-500.0,0.00019178,2]
[315441083,1709039433022,-500.0,0.00019178,2]
[315441085,1709039433033,-500.0,0.00019178,2]
[315441088,1709039433045,-500.35101391,0.00019178,2]
[315441090,1709039433056,-500.0,0.00019178,2]
[315441092,1709039433067,-618.37454632,0.00019178,2]
[315441094,1709039433078,-500.0,0.00019178,2]
[315441098,1709039433102,-500.32824519,0.00019178,2]
[315441100,1709039433115,-500.11571016,0.00019178,2]
[315441102,1709039433126,-500.0,0.00019178,2]
[315441104,1709039433137,-508.23691754,0.00019178,2]
[315441106,1709039433146,-500.0,0.00019178,2]
[315441127,1709039433335,-171.73712487,0.00019178,2]
[315441131,1709039433356,-500.0,0.00019178,2]
[315441133,1709039433367,-310.0,0.00019178,2]
[315441135,1709039433377,-500.0,0.00019178,2]
[315441137,1709039433386,-240.1435452,0.00019178,2]
[315441139,1709039433396,-500.0,0.00019178,2]
[315441141,1709039433405,-500.0,0.00019178,2]
[315441143,1709039433414,-500.0,0.00019178,2]
[315441144,1709039433423,-2713.55,0.00019178,2]
[315441145,1709039433432,-500.0,0.00019178,2]
[315441146,1709039433441,-306.64800142,0.00019178,2]
[315441147,1709039433450,-721.7,0.00019178,2]
[315441148,1709039433460,-332.96266371,0.00019178,2]
[315441149,1709039433469,-500.0,0.00019178,2]
[315441150,1709039433479,-500.0,0.00019178,2]
[315441151,1709039433488,-500.0,0.00019178,2]
[315441152,1709039433497,-500.0,0.00019178,2]
[315441153,1709039433509,-500.0,0.00019178,2]
[315441154,1709039433518,-500.67580525,0.00019178,2]
[315441155,1709039433527,-500.0,0.00019178,2]
[315441156,1709039433536,-549.59387891,0.00019178,2]
[315441157,1709039433545,-1495.81,0.00019178,2]
[315441158,1709039433555,-500.0,0.00019178,2]
[315441159,1709039433564,-500.0,0.00019178,2]
[315441160,1709039433573,-500.0,0.00019178,2]
[315441161,1709039433582,-500.0,0.00019178,2]
[315441162,1709039433592,-500.0,0.00019178,2]
[315441164,1709039433601,-500.0,0.00019178,2]
[315441166,1709039433612,-500.0,0.00019178,2]
[315441168,1709039433622,-500.0,0.00019178,2]
[315441170,1709039433630,-500.0,0.00019178,2]
[315441172,1709039433640,-500.0,0.00019178,2]
[315441174,1709039433649,-601.31095344,0.00019178,2]
[315441176,1709039433658,-500.0,0.00019178,2]
[315441178,1709039433666,-500.0,0.00019178,2]
[315441180,1709039433676,-500.0,0.00019178,2]
[315441182,1709039433685,-500.0,0.00019178,2]
[315441184,1709039433694,-500.0,0.00019178,2]
[315441186,1709039433704,-500.0,0.00019178,2]
[315441188,1709039433725,-500.0,0.00019178,2]
[315441190,1709039433735,-500.0,0.00019178,2]
[315441191,1709039433746,-500.0,0.00019178,2]
[315441194,1709039433760,-500.0,0.00019178,2]
[315441196,1709039433769,-500.0,0.00019178,2]
[315441198,1709039433778,-238.47583384,0.00019178,2]
[315441200,1709039433788,-340.24388928,0.00019178,2]
[315441202,1709039433798,-500.0,0.00019178,2]
[315441204,1709039433808,-500.0,0.00019178,2]
[315441206,1709039433818,-500.52309887,0.00019178,2]
[315441208,1709039433828,-500.0,0.00019178,2]
[315441209,1709039433838,-897.14,0.00019178,2]
[315441212,1709039433847,-155.0,0.00019178,2]
[315441213,1709039433859,-741.9,0.00019178,2]
[315441216,1709039433868,-741.9,0.00019178,2]
[315441218,1709039433879,-741.9,0.00019178,2]
[315441220,1709039433889,-741.9,0.00019178,2]
[315441222,1709039433899,-741.9,0.00019178,2]
[315441224,1709039433909,-741.9,0.00019178,2]
[315441226,1709039433919,-741.9,0.00019178,2]
[315441228,1709039433929,-500.0,0.00019178,2]
[315441230,1709039433938,-500.0,0.00019178,2]
[315441232,1709039433948,-252.75507226,0.00019178,2]
[315441234,1709039433957,-500.0,0.00019178,2]
[315441236,1709039433966,-500.0,0.00019178,2]
[315441238,1709039433975,-500.0,0.00019178,2]
[315441240,1709039433984,-500.0,0.00019178,2]
[315441242,1709039433993,-500.0,0.00019178,2]
[315441244,1709039434002,-500.0,0.00019178,2]
[315441246,1709039434011,-500.0,0.00019178,2]
[315441248,1709039434021,-500.0,0.00019178,2]
[315441250,1709039434031,-500.0,0.00019178,2]
[315441252,1709039434040,-4031.21,0.00019178,2]
[315441253,1709039434050,-500.0,0.00019178,2]
[315441255,1709039434059,-500.0,0.00019178,2]
[315441257,1709039434068,-500.0,0.00019178,2]
[315441260,1709039434078,-1798.16,0.00019178,2]
[315441262,1709039434087,-500.0,0.00019178,2]
[315441264,1709039434096,-500.0,0.00019178,2]
[315441266,1709039434106,-2865.11,0.00019178,2]
[315441268,1709039434115,-500.0,0.00019178,2]
[315441270,1709039434125,-500.0,0.00019178,2]
[315441272,1709039434136,-500.0,0.00019178,2]
[315441274,1709039434146,-500.0,0.00019178,2]
[315441276,1709039434155,-500.0,0.00019178,2]
[315441278,1709039434164,-500.0,0.00019178,2]
[315441280,1709039434173,-500.0,0.00019178,2]
[315441282,1709039434182,-298.46954899,0.00019178,2]
[315441284,1709039434191,-500.0,0.00019178,2]
[315441286,1709039434200,-500.0,0.00019178,2]
[315441288,1709039434210,-500.0,0.00019178,2]
[315441290,1709039434219,-685.37,0.00019178,2]
[315441292,1709039434228,-500.0,0.00019178,2]
[315441294,1709039434237,-2058.6,0.00019178,2]
[315441296,1709039434246,-626.92,0.00019178,2]
[315441298,1709039434256,-500.0,0.00019178,2]
[315441300,1709039434265,-451.77238634,0.00019178,2]
[315441302,1709039434274,-798.93,0.00019178,2]
[315441304,1709039434283,-500.0,0.00019178,2]
[315441306,1709039434292,-500.0,0.00019178,2]
[315441308,1709039434301,-500.0,0.00019178,2]
[315441310,1709039434311,-500.0,0.00019178,2]
[315441312,1709039434320,-209.21007188,0.00019178,2]
[315441314,1709039434328,-501.50917574,0.00019178,2]
[315441316,1709039434338,-670.96,0.00019178,2]
[315441318,1709039434347,-500.0,0.00019178,2]
[315441320,1709039434358,-500.0,0.00019178,2]
[315441322,1709039434367,-500.0,0.00019178,2]
[315441324,1709039434376,-500.0,0.00019178,2]
[315441326,1709039434385,-500.0,0.00019178,2]
[315441328,1709039434394,-502.22643844,0.00019178,2]
[315441330,1709039434403,-500.0,0.00019178,2]
[315441332,1709039434412,-500.49030211,0.00019178,2]
[315441334,1709039434421,-500.0,0.00019178,2]
[315441335,1709039434430,-500.0,0.00019178,2]
[315441337,1709039434439,-10317.33,0.00019178,2]
[315441340,1709039434449,-500.0,0.00019178,2]
[315441342,1709039434458,-500.0,0.00019178,2]
[315441344,1709039434468,-1641.57,0.00019178,2]
[315441346,1709039434477,-500.0,0.00019178,2]
[315441348,1709039434486,-5312.06,0.00019178,2]
[315441350,1709039434495,-500.0,0.00019178,2]
[315441352,1709039434504,-500.0,0.00019178,2]
[315441354,1709039434513,-500.0,0.00019178,2]
[315441356,1709039434522,-500.0,0.00019178,2]
[315441357,1709039434531,-1000.0,0.00019178,2]
[315441360,1709039434543,-500.0,0.00019178,2]
[315441362,1709039434552,-500.0,0.00019178,2]
[315441364,1709039434561,-500.0,0.00019178,2]
[315441366,1709039434570,-500.0,0.00019178,2]
[315441368,1709039434579,-500.0,0.00019178,2]
[315441370,1709039434588,-500.0,0.00019178,2]
[315441372,1709039434597,-5305.14,0.00019178,2]
[315441374,1709039434608,-500.0,0.00019178,2]
[315441376,1709039434617,-500.0,0.00019178,2]
[315441378,1709039434626,-500.0,0.00019178,2]
[315441380,1709039434635,-500.0,0.00019178,2]
[315441382,1709039434644,-821.09,0.00019178,2]
[315441383,1709039434653,-1799.75,0.00019178,2]
[315441386,1709039434663,-500.0,0.00019178,2]
[315441388,1709039434675,-500.0,0.00019178,2]
[315441390,1709039434684,-500.0,0.00019178,2]
[315441392,1709039434694,-500.0,0.00019178,2]
[315441394,1709039434703,-500.0,0.00019178,2]
[315441396,1709039434712,-500.0,0.00019178,2]
[315441398,1709039434721,-500.0,0.00019178,2]
[315441400,1709039434730,-2050.27,0.00019178,2]
[315441402,1709039434739,-500.0,0.00019178,2]
[315441404,1709039434750,-500.0,0.00019178,2]
[315441406,1709039434760,-500.0,0.00019178,2]
[315441408,1709039434770,-1787.5,0.00019178,2]
[315441410,1709039434779,-151.0,0.00019178,2]
[315441412,1709039434788,-703.11,0.00019178,2]
[315441413,1709039434798,-500.0,0.00019178,2]
[315441416,1709039434807,-282.6196593,0.00019178,2]
[315441417,1709039434817,-500.0,0.00019178,2]
[315441419,1709039434826,-500.0,0.00019178,2]
[315441421,1709039434835,-500.0,0.00019178,2]
[315441423,1709039434847,-500.0,0.00019178,2]
[315441425,1709039434857,-500.0,0.00019178,2]
[315441427,1709039434866,-500.0,0.00019178,2]
[315441429,1709039434877,-500.0,0.00019178,2]
[315441432,1709039434886,-521.78939552,0.00019178,2]
[315441434,1709039434896,-500.0,0.00019178,2]
[315441435,1709039434905,-702.13,0.00019178,2]
[315441438,1709039434915,-500.0,0.00019178,2]
[315441440,1709039434924,-500.0,0.00019178,2]
[315441441,1709039434934,-500.0,0.00019178,2]
[315441443,1709039434943,-4264.56,0.00019178,2]
[315441446,1709039434953,-1569.87,0.00019178,2]
[315441447,1709039434962,-3880.76,0.00019178,2]
[315441450,1709039434971,-600.07,0.00019178,2]
[315441452,1709039434981,-500.0,0.00019178,2]
[315441454,1709039434990,-1671.17,0.00019178,2]
[315441456,1709039434999,-7779.55,0.00019178,2]
[315441457,1709039435009,-220.04820398,0.00019178,2]
[315441460,1709039435019,-500.0,0.00019178,2]
[315441462,1709039435028,-500.64514974,0.00019178,2]
[315441463,1709039435038,-20621.68,0.00019178,2]
[315441466,1709039435050,-21457.58,0.00019178,2]
[315441468,1709039435060,-2051.28,0.00019178,2]
[315441470,1709039435069,-500.0,0.00019178,2]
[315441472,1709039435079,-4751.67,0.00019178,2]
[315441474,1709039435088,-500.0,0.00019178,2]
[315441476,1709039435098,-509.88522936,0.00019178,2]
[315441478,1709039435110,-500.0,0.00019178,2]
[315441480,1709039435120,-500.0,0.00019178,2]
[315441482,1709039435129,-500.0,0.00019178,2]
[315441484,1709039435138,-500.0,0.00019178,2]
[315441486,1709039435147,-500.0,0.00019178,2]
[315441488,1709039435156,-500.0,0.00019178,2]
[315441490,1709039435165,-500.0,0.00019178,2]
[315441492,1709039435174,-500.0,0.00019178,2]
[315441494,1709039435183,-500.0,0.00019178,2]
[315441496,1709039435192,-500.0,0.00019178,2]
[315441498,1709039435201,-2475.11,0.00019178,2]
[315441500,1709039435212,-906.97,0.00019178,2]
[315441502,1709039435221,-500.0,0.00019178,2]
[315441504,1709039435230,-1448.55,0.00019178,2]
[315441506,1709039435239,-502.16545605,0.00019178,2]
[315441508,1709039435248,-500.0,0.00019178,2]
[315441509,1709039435257,-334.51167567,0.00019178,2]
[315441511,1709039435268,-979.17,0.00019178,2]
[315441514,1709039435277,-500.0,0.00019178,2]
[315441516,1709039435287,-495.61212969,0.00019178,2]
[315441518,1709039435296,-443.86900434,0.00019178,2]
[315441520,1709039435306,-879.69,0.00019178,2]
[315441522,1709039435315,-500.0,0.00019178,2]
[315441524,1709039435325,-500.0,0.00019178,2]
[315441526,1709039435335,-501.22080587,0.00019178,2]
[315441528,1709039435344,-241.11026349,0.00019178,2]
[315441530,1709039435356,-1034.22,0.00019178,2]
[315441532,1709039435366,-400.32969916,0.00019178,2]
[315441534,1709039435375,-500.0,0.00019178,2]
[315441536,1709039435384,-1009.66,0.00019178,2]
[315441538,1709039435393,-500.0,0.00019178,2]
[315441540,1709039435402,-500.0,0.00019178,2]
[315441542,1709039435411,-3301.33,0.00019178,2]
[315441544,1709039435421,-500.0,0.00019178,2]
[315441546,1709039435431,-500.0,0.00019178,2]
[315441548,1709039435440,-226.05511992,0.00019178,2]
[315441550,1709039435450,-1206.65,0.00019178,2]
[315441552,1709039435460,-501.3868524,0.00019178,2]
[315441553,1709039435469,-175.995247,0.00019178,2]
[315441555,1709039435479,-166.666666,0.00019178,2]
[315441558,1709039435489,-202.508142,0.00019178,2]
[315441560,1709039435499,-500.0,0.00019232,2]
[315441562,1709039435508,-486.79569354,0.00019287,2]
[315441564,1709039435518,-741.9,0.00019351,2]
[315441566,1709039435527,-741.9,0.00019351,2]
[315441568,1709039435537,-741.9,0.00019351,2]
[315441569,1709039435546,-741.9,0.00019351,2]
[315441572,1709039435559,-741.9,0.00019351,2]
[315441574,1709039435569,-741.9,0.00019351,2]
[315441576,1709039435579,-741.9,0.00019351,2]
[315441578,1709039435589,-443.89772022,0.00019351,2]
[315441580,1709039435599,-200.6117409,0.000194,2]
[315441582,1709039435610,-153.0,0.000194,2]
[315441584,1709039435620,-153.0,0.000194,2]
[315441586,1709039435630,-153.0,0.000194,2]
[315441588,1709039435640,-407.4416141,0.000194,2]
[315441590,1709039435650,-153.0,0.000194,2]
[315441592,1709039435661,-153.0,0.000194,2]
[315441594,1709039435671,-153.0,0.000194,2]
[315441596,1709039435681,-153.0,0.000194,2]
[315441598,1709039435691,-153.0,0.000194,2]
[315441600,1709039435700,-741.9,0.00019451,2]
[315441601,1709039435711,-741.9,0.00019451,2]
[315441603,1709039435742,-741.9,0.00019451,2]
[315441605,1709039435753,-741.9,0.00019451,2]
[315441607,1709039435764,-741.9,0.00019451,2]
[315441609,1709039435777,-741.9,0.00019451,2]
[315441611,1709039435787,-741.9,0.00019451,2]
[315441613,1709039435797,-741.9,0.00019451,2]
[315441615,1709039435807,-741.9,0.00019451,2]
[315441617,1709039435817,-741.91258347,0.00019451,2]
[315441619,1709039435827,-500.0,0.00019452,2]
[315441621,1709039435836,-500.0,0.00019452,2]
[315441623,1709039435848,-500.0,0.00019452,2]
[315441625,1709039435859,-500.0,0.00019452,2]
[315441627,1709039435869,-500.0,0.00019452,2]
[315441629,1709039435878,-500.0,0.00019452,2]
[315441631,1709039435888,-500.0,0.00019452,2]
[315441633,1709039435898,-500.0,0.00019452,2]
[315441635,1709039435908,-563.60361199,0.00019452,2]
[315441637,1709039435918,-500.0,0.00019452,2]
[315441639,1709039435927,-500.0,0.00019452,2]
[315441641,1709039435938,-568.85457968,0.00019452,2]
[315441653,1709039436046,-500.0,0.00019452,2]
[315441656,1709039436056,-500.0,0.00019452,2]
[315441658,1709039436066,-500.0,0.00019452,2]
[315441660,1709039436075,-500.0,0.00019452,2]
[315441661,1709039436084,-2713.55,0.00019452,2]
[315441663,1709039436094,-500.0,0.00019452,2]
[315441665,1709039436104,-721.7,0.00019452,2]
[315441668,1709039436114,-500.0,0.00019452,2]
[315441670,1709039436124,-500.0,0.00019452,2]
[315441672,1709039436133,-311.25723657,0.00019452,2]
[315441673,1709039436143,-500.0,0.00019452,2]
[315441675,1709039436152,-501.62472493,0.00019452,2]
[315441677,1709039436162,-500.0,0.00019452,2]
[315441680,1709039436172,-1495.81,0.00019452,2]
[315441681,1709039436182,-500.0,0.00019452,2]
[315441683,1709039436192,-500.0,0.00019452,2]
[315441686,1709039436202,-500.0,0.00019452,2]
[315441687,1709039436213,-500.0,0.00019452,2]
[315441690,1709039436224,-500.0,0.00019452,2]
[315441691,1709039436234,-500.0,0.00019452,2]
[315441693,1709039436244,-500.0,0.00019452,2]
[315441696,1709039436254,-228.67540805,0.00019452,2]
[315441697,1709039436264,-500.0,0.00019452,2]
[315441700,1709039436274,-500.0,0.00019452,2]
[315441701,1709039436283,-500.0,0.00019452,2]
[315441703,1709039436292,-500.0,0.00019452,2]
[315441705,1709039436302,-502.36541284,0.00019452,2]
[315441707,1709039436311,-500.0,0.00019452,2]
[315441709,1709039436321,-500.0,0.00019452,2]
[315441711,1709039436330,-500.0,0.00019452,2]
[315441713,1709039436339,-500.0,0.00019452,2]
[315441715,1709039436349,-501.21301573,0.00019452,2]
[315441717,1709039436361,-337.0351218,0.00019452,2]
[315441719,1709039436370,-241.83685928,0.00019452,2]
[315441721,1709039436379,-897.14,0.00019452,2]
[315441723,1709039436387,-500.0,0.00019452,2]
[315441725,1709039436397,-491.01392198,0.00019452,2]
[315441727,1709039436406,-500.0,0.00019452,2]
[315441730,1709039436415,-500.0,0.00019452,2]
[315441732,1709039436424,-500.0,0.00019452,2]
[315441733,1709039436434,-501.23732277,0.00019452,2]
[315441735,1709039436443,-500.0,0.00019452,2]
[315441737,1709039436452,-500.0,0.00019452,2]
[315441739,1709039436461,-500.0,0.00019452,2]
[315441741,1709039436471,-500.0,0.00019452,2]
[315441744,1709039436480,-500.0,0.00019452,2]
[315441745,1709039436489,-4031.21,0.00019452,2]
[315441748,1709039436499,-502.85792086,0.00019452,2]
[315441750,1709039436509,-500.0,0.00019452,2]
[315441752,1709039436518,-500.0,0.00019452,2]
[315441754,1709039436528,-1798.16,0.00019452,2]
[315441756,1709039436537,-2865.11,0.00019452,2]
[315441757,1709039436547,-500.0,0.00019452,2]
[315441760,1709039436556,-500.0,0.00019452,2]
[315441762,1709039436566,-500.0,0.00019452,2]
[315441764,1709039436575,-500.0,0.00019452,2]
[315441766,1709039436584,-500.0,0.00019452,2]
[315441767,1709039436593,-500.0,0.00019452,2]
[315441770,1709039436603,-500.0,0.00019452,2]
[315441772,1709039436614,-190.12652069,0.00019452,2]
[315441774,1709039436623,-500.0,0.00019452,2]
[315441775,1709039436633,-500.0,0.00019452,2]
[315441777,1709039436642,-685.37,0.00019452,2]
[315441780,1709039436652,-500.0,0.00019452,2]
[315441781,1709039436662,-2058.6,0.00019452,2]
[315441783,1709039436671,-626.92,0.00019452,2]
[315441785,1709039436682,-500.0,0.00019452,2]
[315441786,1709039436691,-798.93,0.00019452,2]
[315441787,1709039436704,-500.0,0.00019452,2]
[315441788,1709039436724,-500.0,0.00019452,2]
[315441789,1709039436735,-500.0,0.00019452,2]
[315441790,1709039436745,-670.96,0.00019452,2]
[315441791,1709039436759,-500.0,0.00019452,2]
[315441792,1709039436769,-500.0,0.00019452,2]
[315441793,1709039436778,-501.95643743,0.00019452,2]
[315441794,1709039436788,-500.0,0.00019452,2]
[315441795,1709039436799,-500.0,0.00019452,2]
[315441796,1709039436808,-500.0,0.00019452,2]
[315441797,1709039436817,-162.83762222,0.00019452,2]
[315441799,1709039436826,-10317.33,0.00019452,2]
[315441801,1709039436836,-183.67121497,0.00019452,2]
[315441803,1709039436846,-500.0,0.00019452,2]
[315441805,1709039436856,-1641.57,0.00019452,2]
[315441807,1709039436865,-500.0,0.00019452,2]
[315441809,1709039436876,-5312.06,0.00019452,2]
[315441811,1709039436885,-500.0,0.00019452,2]
[315441813,1709039436895,-500.0,0.00019452,2]
[315441815,1709039436904,-500.0,0.00019452,2]
[315441817,1709039436913,-500.0,0.00019452,2]
[315441819,1709039436923,-160.72308855,0.00019452,2]
[315441821,1709039436931,-211.14111785,0.00019452,2]
[315441823,1709039436941,-500.0,0.00019452,2]
[315441825,1709039436950,-500.0,0.00019452,2]
[315441827,1709039436960,-500.0,0.00019452,2]
[315441829,1709039436970,-500.0,0.00019452,2]
[315441831,1709039436979,-500.0,0.00019452,2]
[315441832,1709039436989,-5305.14,0.00019452,2]
[315441834,1709039436998,-249.69840039,0.00019452,2]
[315441837,1709039437008,-298.05466901,0.00019452,2]
[315441838,1709039437019,-500.0,0.00019452,2]
[315441840,1709039437028,-500.0,0.00019452,2]
[315441842,1709039437038,-821.09,0.00019452,2]
[315441845,1709039437047,-1799.75,0.00019452,2]
[315441846,1709039437057,-500.0,0.00019452,2]
[315441848,1709039437066,-500.0,0.00019452,2]
[315441850,1709039437076,-500.0,0.00019452,2]
[315441853,1709039437086,-500.0,0.00019452,2]
[315441855,1709039437096,-500.0,0.00019452,2]
[315441857,1709039437107,-500.0,0.00019452,2]
[315441859,1709039437118,-500.0,0.00019452,2]
[315441860,1709039437128,-2050.27,0.00019452,2]
[315441862,1709039437136,-500.0,0.00019452,2]
[315441864,1709039437145,-500.0,0.00019452,2]
[315441866,1709039437155,-500.0,0.00019452,2]
[315441868,1709039437164,-1005.76954707,0.00019452,2]
[315441872,1709039437183,-538.51743645,0.00019452,2]
[315441874,1709039437194,-243.21301648,0.00019452,2]
[315441876,1709039437204,-151.0,0.00019452,2]
[315441878,1709039437212,-703.11,0.00019452,2]
[315441880,1709039437222,-500.0,0.00019452,2]
[315441882,1709039437231,-354.29,0.00019452,2]
[315441884,1709039437240,-500.0,0.00019452,2]
[315441886,1709039437249,-500.0,0.00019452,2]
[315441888,1709039437258,-500.0,0.00019452,2]
[315441890,1709039437267,-500.0,0.00019452,2]
[315441892,1709039437276,-500.0,0.00019452,2]
[315441894,1709039437286,-702.13,0.00019452,2]
[315441896,1709039437294,-500.0,0.00019452,2]
[315441898,1709039437303,-500.0,0.00019452,2]
[315441900,1709039437312,-500.0,0.00019452,2]
[315441902,1709039437321,-2353.61029493,0.00019452,2]
[315442018,1709039438349,-1591.62159516,0.00018401,2]
[315442020,1709039438361,-500.0,0.00019178,2]
[315442022,1709039438369,-500.0,0.00019178,2]
[315442024,1709039438378,-500.0,0.00019178,2]
[315442026,1709039438387,-1910.94970507,0.00019452,2]
[315442028,1709039438396,-1569.87,0.00019452,2]
[315442030,1709039438406,-3880.76,0.00019452,2]
[315442032,1709039438415,-600.07,0.00019452,2]
[315442034,1709039438424,-500.0,0.00019452,2]
[315442036,1709039438433,-1671.17,0.00019452,2]
[315442038,1709039438442,-7779.55,0.00019452,2]
[315442040,1709039438451,-500.0,0.00019452,2]
[315442041,1709039438460,-20621.68,0.00019452,2]
[315442043,1709039438469,-21457.58,0.00019452,2]
[315442045,1709039438478,-2051.28,0.00019452,2]
[315442047,1709039438486,-500.0,0.00019452,2]
[315442049,1709039438496,-4751.67,0.00019452,2]
[315442051,1709039438505,-500.0,0.00019452,2]
[315442053,1709039438513,-500.0,0.00019452,2]
[315442055,1709039438522,-500.0,0.00019452,2]
[315442057,1709039438532,-500.0,0.00019452,2]
[315442059,1709039438541,-500.0,0.00019452,2]
[315442061,1709039438550,-500.0,0.00019452,2]
[315442063,1709039438559,-500.0,0.00019452,2]
[315442065,1709039438568,-376.53396052,0.00019452,2]
[315442067,1709039438577,-500.0,0.00019452,2]
[315442069,1709039438587,-500.0,0.00019452,2]
[315442071,1709039438596,-500.0,0.00019452,2]
[315442073,1709039438607,-2475.11,0.00019452,2]
[315442075,1709039438616,-906.97,0.00019452,2]
[315442077,1709039438625,-500.0,0.00019452,2]
[315442079,1709039438633,-1448.55,0.00019452,2]
[315442081,1709039438643,-500.0,0.00019452,2]
[315442083,1709039438651,-979.17,0.00019452,2]
[315442085,1709039438660,-500.0,0.00019452,2]
[315442087,1709039438669,-879.69,0.00019452,2]
[315442089,1709039438678,-500.0,0.00019452,2]
[315442091,1709039438687,-500.0,0.00019452,2]
[315442093,1709039438696,-500.0,0.00019452,2]
[315442095,1709039438708,-1034.22,0.00019452,2]
[315442097,1709039438717,-1009.66,0.00019452,2]
[315442099,1709039438725,-500.0,0.00019452,2]
[315442100,1709039438735,-3301.33,0.00019452,2]
[315442102,1709039438745,-500.0,0.00019452,2]
[315442104,1709039438758,-500.0,0.00019452,2]
[315442106,1709039438767,-1206.65,0.00019452,2]